bitfinex/quotes_BTCUSD_20241013
["timestamp","ask_amount","ask_price","bid_price","bid_amount"]
[1728833603735,4.8e-07,62269.0,62268.0,0.444196]
[1728833604449,4.8e-07,62269.0,62268.0,0.446196]
[1728833604898,0.00100048,62269.0,62268.0,0.460196]
[1728833605363,4.8e-07,62269.0,62268.0,0.446196]
[1728833606029,4.8e-07,62269.0,62268.0,0.444196]
[1728833606538,4.8e-07,62273.0,62272.0,0.185585]
[1728833606723,4.8e-07,62273.0,62272.0,0.47265166]
[1728833607168,0.0798517,62279.0,62278.0,0.16257]
[1728833607388,0.001638,62284.0,62278.0,0.16257]
[1728833607617,0.001638,62284.0,62276.0,0.32115]
[1728833607618,0.001638,62284.0,62283.0,0.160557]
[1728833608770,0.001638,62284.0,62283.0,0.165557]
[1728833608989,0.001638,62284.0,62283.0,0.167557]
[1728833609232,0.001638,62284.0,62283.0,0.185557]
[1728833609677,0.001638,62284.0,62283.0,0.195557]
[1728833609896,0.001638,62284.0,62283.0,0.193557]
[1728833610363,0.001638,62284.0,62283.0,0.195557]
[1728833610591,0.001638,62284.0,62283.0,0.201557]
[1728833611278,0.001638,62284.0,62283.0,0.199557]
[1728833611921,0.082938,62284.0,62283.0,0.199557]
[1728833612801,0.087938,62284.0,62283.0,0.176557]
[1728833613065,0.187938,62284.0,62283.0,0.176557]
[1728833613277,0.187438,62284.0,62283.0,0.176557]
[1728833613960,0.187438,62284.0,62283.0,0.170557]
[1728833614177,0.187438,62284.0,62283.0,0.160557]
[1728833614435,0.190438,62284.0,62283.0,0.160557]
[1728833614667,0.35707875,62284.0,62283.0,0.160557]
[1728833615113,0.390238,62284.0,62283.0,0.160557]
[1728833615745,0.55987875,62284.0,62283.0,0.160557]
[1728833615953,0.390238,62284.0,62283.0,0.160557]
[1728833616163,0.55987875,62284.0,62283.0,0.160557]
[1728833617014,1.05987875,62284.0,62283.0,0.160557]
[1728833617692,1.08502968,62284.0,62283.0,0.160557]
[1728833618328,0.91538893,62284.0,62283.0,0.160557]
[1728833619717,0.890238,62284.0,62283.0,0.160557]
[1728833620175,0.890238,62284.0,62279.0,0.321953]
[1728833620375,0.3853,62280.0,62279.0,0.161385]
[1728833620603,0.3853,62280.0,62269.0,0.24042122]
[1728833620604,0.005,62270.0,62269.0,0.321182]
[1728833620883,0.005,62270.0,62267.0,0.40183722]
[1728833620884,0.005,62268.0,62267.0,0.40183722]
[1728833621109,0.088,62268.0,62267.0,0.161416]
[1728833621515,0.35764075,62268.0,62267.0,0.161416]
[1728833622153,0.35764075,62268.0,62267.0,0.166416]
[1728833622800,0.38279697,62268.0,62267.0,0.169416]
[1728833623043,0.55243772,62268.0,62267.0,0.008818]
[1728833623754,0.005,62261.0,62257.0,0.160623]
[1728833624019,0.088,62261.0,62253.0,0.321268]
[1728833624435,0.11315993,62261.0,62257.0,0.160622]
[1728833624650,0.21315993,62261.0,62258.0,0.161439]
[1728833625080,0.188,62261.0,62258.0,0.161439]
[1728833625296,0.19,62261.0,62258.0,0.161439]
[1728833625756,0.69,62261.0,62258.0,0.161439]
[1728833626256,0.696,62261.0,62260.0,0.001818]
[1728833627726,0.696,62261.0,62260.0,0.162434]
[1728833627980,0.696,62261.0,62260.0,0.001818]
[1728833629129,0.69548803,62261.0,62260.0,0.001818]
[1728833629772,0.69548803,62261.0,62260.0,0.162434]
[1728833630031,0.69548803,62261.0,62260.0,0.001818]
[1728833630257,0.69548803,62261.0,62260.0,0.162434]
[1728833630743,0.69548803,62261.0,62260.0,0.001818]
[1728833632493,0.87918803,62261.0,62260.0,0.001818]
[1728833634999,0.90434976,62261.0,62260.0,0.001818]
[1728833636713,0.90434976,62261.0,62254.0,0.321263]
[1728833636714,0.00448803,62251.0,62247.0,0.321296]
[1728833636948,0.42686953,62251.0,62250.0,0.16146]
[1728833637190,0.52686953,62251.0,62250.0,0.000818]
[1728833637435,0.00448803,62246.0,62245.0,0.481964]
[1728833637678,0.46382878,62246.0,62245.0,0.481964]
[1728833638660,0.54692878,62246.0,62245.0,0.481964]
[1728833639155,0.54692878,62246.0,62245.0,0.160655]
[1728833640133,0.54692878,62246.0,62245.0,0.162655]
[1728833640390,0.55092878,62246.0,62245.0,0.162655]
[1728833640617,0.55092878,62246.0,62245.0,0.160655]
[1728833640859,0.55292878,62246.0,62245.0,0.160655]
[1728833641373,0.67568573,62246.0,62245.0,0.160655]
[1728833641627,0.55292878,62246.0,62245.0,0.160655]
[1728833642555,0.00448803,62244.0,62241.0,0.160663]
[1728833642811,0.27412878,62244.0,62241.0,0.160663]
[1728833643103,0.00448803,62224.0,62213.0,0.5552]
[1728833643324,0.27412878,62220.0,62219.0,0.72258822]
[1728833643570,0.27412878,62220.0,62219.0,0.482167]
[1728833643571,0.2886712,62220.0,62219.0,0.482167]
[1728833644244,0.31384711,62220.0,62219.0,0.482167]
[1728833644465,0.81384711,62220.0,62219.0,0.482167]
[1728833646341,0.81584711,62220.0,62219.0,0.495167]
[1728833646568,0.81484711,62220.0,62219.0,0.495167]
[1728833646804,0.81384711,62220.0,62219.0,0.482167]
[1728833647249,0.61903045,62220.0,62219.0,0.486167]
[1728833647490,0.60448803,62220.0,62219.0,0.679867]
[1728833648230,0.6,62220.0,62219.0,0.679867]
[1728833648736,0.43928,62220.0,62219.0,0.702867]
[1728833648998,0.43928,62220.0,62219.0,0.70590131]
[1728833649507,0.407136,62220.0,62219.0,0.70990131]
[1728833649749,0.310704,62220.0,62219.0,0.70990131]
[1728833649993,0.27856,62220.0,62219.0,0.70590131]
[1728833650229,0.27956,62220.0,62219.0,0.71990131]
[1728833650686,0.27956,62220.0,62219.0,0.71790131]
[1728833650906,0.501,62220.0,62219.0,0.71790131]
[1728833651194,0.502,62220.0,62219.0,0.71790131]
[1728833651431,0.51654242,62220.0,62219.0,0.50120106]
[1728833651685,0.51654242,62220.0,62219.0,0.496167]
[1728833651686,0.7906712,62220.0,62219.0,0.496167]
[1728833651922,0.7906712,62220.0,62219.0,0.496985]
[1728833652432,0.7896712,62220.0,62219.0,0.482985]
[1728833652703,0.7906712,62220.0,62219.0,0.495985]
[1728833653192,0.7896712,62220.0,62219.0,0.482985]
[1728833653423,0.7886712,62220.0,62219.0,0.482985]
[1728833653663,0.7886712,62220.0,62219.0,0.486985]
[1728833653917,0.7886712,62220.0,62219.0,0.489985]
[1728833654178,0.7886712,62220.0,62219.0,0.486985]
[1728833654674,0.7886712,62220.0,62219.0,0.489985]
[1728833658428,0.88701983,62220.0,62219.0,0.489985]
[1728833658697,0.7886712,62220.0,62219.0,0.489985]
[1728833662755,0.61903045,62220.0,62219.0,0.489985]
[1728833663400,0.61903045,62220.0,62219.0,0.4950199]
[1728833663886,0.61454242,62220.0,62219.0,0.4950199]
[1728833664120,0.535712,62220.0,62219.0,0.4950199]
[1728833664338,0.33928,62220.0,62219.0,0.6771199]
[1728833664768,0.242848,62220.0,62219.0,0.7001199]
[1728833664989,0.17856,62220.0,62219.0,0.71114784]
[1728833665321,0.17856,62220.0,62219.0,0.78474784]
[1728833665355,0.147416,62220.0,62219.0,0.78474784]
[1728833665536,0.01884,62220.0,62219.0,0.79074784]
[1728833665741,0.01784,62220.0,62219.0,0.79859554]
[1728833665962,0.01884,62220.0,62219.0,1.01130864]
[1728833666172,0.24042122,62232.0,62219.0,1.01130864]
[1728833666173,0.24042122,62232.0,62231.0,0.445391]
[1728833666380,0.24042122,62232.0,62231.0,0.47030154]
[1728833666593,0.24042122,62232.0,62231.0,0.46830154]
[1728833667001,0.00448803,62236.0,62235.0,0.183681]
[1728833667220,0.00448803,62236.0,62235.0,0.19656155]
[1728833667425,0.5,62239.0,62238.0,0.160673]
[1728833667631,0.6,62239.0,62238.0,0.16570585]
[1728833668278,0.60448803,62239.0,62238.0,0.16570585]
[1728833668504,0.6,62239.0,62238.0,0.16570585]
[1728833668705,0.60448803,62239.0,62238.0,0.16570585]
[1728833668922,0.60448803,62239.0,62238.0,0.16870585]
[1728833669132,0.6,62239.0,62238.0,0.17370585]
[1728833669383,0.6,62239.0,62238.0,0.17570585]
[1728833669829,0.33933,62239.0,62238.0,0.19870585]
[1728833670513,0.33933,62239.0,62238.0,0.21855982]
[1728833670932,0.33933,62239.0,62238.0,0.21555982]
[1728833670933,0.5,62239.0,62238.0,0.21555982]
[1728833671371,0.468866,62239.0,62238.0,0.2085434]
[1728833671569,0.001,62239.0,62238.0,0.2085434]
[1728833671805,0.001,62239.0,62238.0,0.19370585]
[1728833672253,0.001,62239.0,62238.0,0.20170585]
[1728833674716,0.001,62239.0,62238.0,0.20370539]
[1728833675366,0.001,62239.0,62238.0,0.196673]
[1728833675600,0.001,62239.0,62238.0,0.198673]
[1728833676251,0.001,62239.0,62238.0,0.197491]
[1728833676672,0.002636,62239.0,62238.0,0.197491]
[1728833676891,0.002636,62239.0,62238.0,0.199491]
[1728833678490,1e-06,62246.0,62245.0,0.460355]
[1728833678720,0.20829522,62253.0,62252.0,0.160637]
[1728833678938,0.17616822,62253.0,62252.0,0.185637]
[1728833679178,0.17616822,62253.0,62252.0,0.183637]
[1728833679415,0.17616822,62253.0,62252.0,0.160637]
[1728833679630,0.00448803,62255.0,62254.0,0.160632]
[1728833680079,0.10448803,62255.0,62254.0,0.160632]
[1728833682116,0.10448803,62255.0,62254.0,0.161632]
[1728833682783,0.00448803,62255.0,62254.0,0.161632]
[1728833684553,0.00448803,62255.0,62254.0,0.001]
[1728833684760,0.00448803,62255.0,62254.0,0.161632]
[1728833685425,0.10448803,62257.0,62254.0,0.001]
[1728833685633,0.00448803,62255.0,62254.0,0.161632]
[1728833687543,0.00448803,62255.0,62254.0,0.160632]
[1728833687976,0.00448803,62256.0,62254.0,0.160632]
[1728833688193,0.00448803,62255.0,62253.0,0.321268]
[1728833688379,0.001636,62255.0,62254.0,0.183632]
[1728833688809,0.001636,62255.0,62254.0,0.184632]
[1728833689452,0.00448803,62257.0,62256.0,0.321253]
[1728833689672,0.00448803,62257.0,62256.0,0.48188]
[1728833690099,0.00448803,62257.0,62256.0,0.321253]
[1728833690309,0.00448803,62257.0,62256.0,0.48188]
[1728833691822,0.00448803,62257.0,62256.0,0.50488]
[1728833692513,0.10448803,62264.0,62263.0,0.160609]
[1728833692744,0.10448803,62264.0,62263.0,0.158609]
[1728833693411,0.00448803,62265.0,62261.0,0.321227]
[1728833693627,0.0789,62270.0,62265.0,0.160603]
[1728833693628,0.00448803,62266.0,62265.0,0.160603]
[1728833693838,0.00448803,62266.0,62265.0,0.158603]
[1728833694720,0.00612403,62267.0,62264.0,0.321211]
[1728833694944,0.00612403,62267.0,62266.0,0.160601]
[1728833696918,0.00612403,62267.0,62266.0,0.164601]
[1728833697383,0.00612403,62267.0,62266.0,0.169601]
[1728833701169,0.00612403,62267.0,62266.0,0.164601]
[1728833705818,0.001636,62267.0,62266.0,0.164601]
[1728833706032,0.00612403,62267.0,62266.0,0.187601]
[1728833706916,0.00612403,62267.0,62266.0,0.21165763]
[1728833707796,0.00612403,62267.0,62266.0,0.19962961]
[1728833708009,0.00612403,62267.0,62266.0,0.17662961]
[1728833708225,0.00612403,62267.0,62266.0,0.18866587]
[1728833709284,0.00612403,62267.0,62266.0,0.17662961]
[1728833710183,0.08262403,62267.0,62266.0,0.17662961]
[1728833710399,0.20019366,62267.0,62266.0,0.17662961]
[1728833710615,0.18262403,62267.0,62266.0,0.17662961]
[1728833711379,0.18262403,62267.0,62266.0,0.16762961]
[1728833711596,0.08262403,62267.0,62266.0,0.17162961]
[1728833712685,0.08262403,62267.0,62266.0,0.16762961]
[1728833712888,0.08262403,62267.0,62266.0,0.155601]
[1728833713113,0.08262403,62267.0,62266.0,0.156601]
[1728833713340,0.08262403,62267.0,62266.0,0.157419]
[1728833717299,0.08262403,62267.0,62266.0,0.143175]
[1728833717512,0.00612403,62267.0,62266.0,0.143175]
[1728833718864,0.27576478,62267.0,62266.0,0.143175]
[1728833720416,0.59412587,62267.0,62266.0,0.143175]
[1728833720842,0.54896478,62267.0,62266.0,0.143175]
[1728833722644,0.57412159,62267.0,62266.0,0.143175]
[1728833724099,0.57412159,62267.0,62266.0,0.142175]
[1728833724825,0.57912159,62267.0,62266.0,0.142175]
[1728833729783,0.55396478,62267.0,62266.0,0.142175]
[1728833732760,0.57912233,62267.0,62266.0,0.142175]
[1728833733492,0.62687307,62267.0,62266.0,0.142175]
[1728833733912,0.57912233,62267.0,62266.0,0.142175]
[1728833739781,0.55396478,62267.0,62266.0,0.142175]
[1728833742734,0.57912253,62267.0,62266.0,0.142175]
[1728833746275,0.75376328,62267.0,62266.0,0.142175]
[1728833746277,0.89815534,62267.0,62266.0,0.161419]
[1728833746536,0.9459976,62267.0,62266.0,0.161419]
[1728833746791,0.89815534,62267.0,62266.0,0.161419]
[1728833748029,0.66449442,62267.0,62266.0,0.161419]
[1728833748508,0.52010236,62267.0,62266.0,0.161419]
[1728833749744,0.54275037,62267.0,62266.0,0.161419]
[1728833749986,0.60698075,62267.0,62266.0,0.161419]
[1728833750648,0.60697252,62267.0,62266.0,0.161419]
[1728833751754,0.55917499,62267.0,62266.0,0.161419]
[1728833752620,0.62887128,62267.0,62266.0,0.161419]
[1728833752840,0.13428243,62267.0,62266.0,0.161419]
[1728833753067,0.13928243,62267.0,62266.0,0.161419]
[1728833753289,0.54955461,62267.0,62266.0,0.161419]
[1728833753507,0.30913339,62267.0,62266.0,0.161419]
[1728833753742,0.30613339,62267.0,62266.0,0.161419]
[1728833755099,0.30913339,62267.0,62266.0,0.161419]
[1728833758676,0.03928243,62267.0,62266.0,0.161419]
[1728833758909,0.009636,62267.0,62266.0,0.420819]
[1728833759134,0.01412403,62267.0,62266.0,0.420819]
[1728833759353,0.51412403,62267.0,62266.0,0.420819]
[1728833759566,0.51112403,62267.0,62266.0,0.420819]
[1728833760005,0.50912403,62267.0,62266.0,0.420819]
[1728833760235,0.60912403,62267.0,62266.0,0.161419]
[1728833760473,0.60912403,62267.0,62266.0,0.163419]
[1728833761350,0.60612403,62267.0,62266.0,0.163419]
[1728833761851,0.60612403,62267.0,62266.0,0.164419]
[1728833762061,0.63128083,62267.0,62266.0,0.164419]
[1728833767252,0.63128083,62267.0,62266.0,0.241519]
[1728833767457,0.60612403,62267.0,62266.0,0.241519]
[1728833767660,0.50612403,62267.0,62266.0,0.241519]
[1728833768283,0.469516,62267.0,62266.0,0.266519]
[1728833768482,0.469516,62267.0,62266.0,0.448819]
[1728833768688,0.469516,62267.0,62266.0,0.446819]
[1728833768899,0.47400403,62267.0,62266.0,0.446819]
[1728833769123,0.47400403,62267.0,62266.0,0.445819]
[1728833769598,0.50448803,62267.0,62266.0,0.451819]
[1728833770423,0.67433899,62267.0,62266.0,0.169419]
[1728833770700,0.77433899,62267.0,62266.0,0.167419]
[1728833771130,0.77533899,62267.0,62266.0,0.173419]
[1728833771575,0.78033899,62267.0,62266.0,0.173419]
[1728833771779,0.78197499,62267.0,62266.0,0.173419]
[1728833772602,0.78197499,62267.0,62266.0,0.167419]
[1728833772755,0.80713166,62267.0,62266.0,0.167419]
[1728833773971,0.80613166,62267.0,62266.0,0.165419]
[1728833774409,0.80613166,62267.0,62266.0,0.167419]
[1728833774616,0.80613166,62267.0,62266.0,0.163419]
[1728833774819,0.80613166,62267.0,62266.0,0.164419]
[1728833777077,0.6312807,62267.0,62266.0,0.164419]
[1728833777285,0.50612403,62267.0,62266.0,0.164419]
[1728833778389,0.501636,62267.0,62266.0,0.164419]
[1728833778597,0.501636,62267.0,62266.0,0.166419]
[1728833779036,0.501636,62267.0,62266.0,0.189419]
[1728833779037,0.437396,62267.0,62266.0,0.189419]
[1728833779278,0.341036,62267.0,62266.0,0.189419]
[1728833779921,0.341036,62267.0,62266.0,0.187419]
[1728833780145,0.341036,62267.0,62266.0,0.186419]
[1728833780390,0.341036,62267.0,62266.0,0.190419]
[1728833780391,0.50612403,62267.0,62266.0,0.190419]
[1728833780621,0.50612403,62267.0,62266.0,0.167419]
[1728833781354,0.50612403,62267.0,62266.0,0.165419]
[1728833781820,0.50612403,62267.0,62266.0,0.170419]
[1728833782328,0.00612403,62267.0,62266.0,0.170419]
[1728833800300,0.001636,62267.0,62266.0,0.443319]
[1728833800520,0.00612403,62267.0,62266.0,0.443319]
[1728833800746,0.001636,62267.0,62266.0,0.466319]
[1728833801193,0.00612403,62267.0,62266.0,0.466319]
[1728833805816,0.001636,62267.0,62266.0,0.466319]
[1728833806015,0.001636,62267.0,62266.0,0.462319]
[1728833806286,0.001636,62267.0,62266.0,0.467319]
[1728833806637,0.001636,62267.0,62266.0,0.4865972]
[1728833806844,1e-06,62267.0,62266.0,0.4664189]
[1728833807063,0.00448903,62267.0,62266.0,0.4664189]
[1728833807516,0.00448903,62267.0,62266.0,0.4672369]
[1728833807980,0.001637,62267.0,62266.0,0.4672369]
[1728833808212,3e-08,62268.0,62267.0,0.183598]
[1728833808443,0.02515187,62277.0,62276.0,0.160575]
[1728833808689,0.1,62278.0,62277.0,0.160572]
[1728833809220,0.1,62278.0,62275.0,0.321154]
[1728833809221,0.0267895,62283.0,62275.0,0.321154]
[1728833809468,0.0267895,62283.0,62282.0,0.16056]
[1728833809686,0.001638,62283.0,62282.0,0.16056]
[1728833810975,0.005638,62283.0,62282.0,0.16056]
[1728833811199,0.001638,62283.0,62282.0,0.16056]
[1728833811658,0.27148896,62283.0,62282.0,0.16156]
[1728833811903,0.27648896,62283.0,62282.0,0.16156]
[1728833812629,0.55028896,62283.0,62282.0,0.16156]
[1728833812882,0.57543882,62283.0,62282.0,0.16156]
[1728833813356,0.57543882,62283.0,62282.0,0.16256]
[1728833813611,0.57543882,62283.0,62282.0,0.16356]
[1728833814101,0.57543882,62283.0,62282.0,0.16056]
[1728833814580,0.57543882,62283.0,62282.0,0.16156]
[1728833816568,0.74528978,62283.0,62282.0,0.16156]
[1728833816801,0.57543882,62283.0,62282.0,0.16156]
[1728833817754,0.57543882,62283.0,62282.0,0.16056]
[1728833818226,0.57843882,62283.0,62282.0,0.16056]
[1728833819651,0.55328896,62283.0,62282.0,0.16056]
[1728833822655,0.60114682,62283.0,62282.0,0.16056]
[1728833823449,0.682438,62283.0,62282.0,0.16056]
[1728833823710,0.604638,62283.0,62282.0,0.16056]
[1728833826827,0.77448896,62283.0,62282.0,0.16056]
[1728833829090,0.604638,62283.0,62282.0,0.16056]
[1728833836592,0.004638,62283.0,62282.0,0.16056]
[1728833838897,0.001638,62283.0,62282.0,0.16056]
[1728833839110,0.24042122,62292.0,62291.0,0.160536]
[1728833839774,0.10549553,62293.0,62290.0,0.321076]
[1728833839988,0.10549553,62293.0,62292.0,0.160534]
[1728833839989,0.11049553,62293.0,62292.0,0.160534]
[1728833840205,0.48779106,62293.0,62292.0,0.160534]
[1728833840419,0.58779106,62293.0,62292.0,0.160534]
[1728833841491,0.58779106,62293.0,62292.0,0.155534]
[1728833842129,0.59479106,62293.0,62292.0,0.156534]
[1728833842360,0.48929553,62293.0,62292.0,0.156534]
[1728833842572,0.59279106,62293.0,62292.0,0.156534]
[1728833843002,0.59279106,62293.0,62292.0,0.157534]
[1728833843003,0.48929553,62293.0,62292.0,0.157534]
[1728833843866,0.55348454,62293.0,62292.0,0.157534]
[1728833844987,0.36102054,62293.0,62292.0,0.157534]
[1728833847667,0.008636,62293.0,62292.0,0.157534]
[1728833849857,0.006636,62293.0,62292.0,0.156534]
[1728833850088,0.001636,62293.0,62292.0,0.155534]
[1728833850314,0.003636,62293.0,62292.0,0.155534]
[1728833851458,0.001636,62293.0,62292.0,0.155534]
[1728833851879,0.001636,62293.0,62292.0,0.157534]
[1728833852307,0.001636,62293.0,62292.0,0.160534]
[1728833856517,0.001636,62293.0,62292.0,0.005]
[1728833857239,0.001636,62293.0,62292.0,0.005818]
[1728833858082,0.001636,62293.0,62292.0,0.39800254]
[1728833858299,0.001636,62293.0,62292.0,0.48070254]
[1728833858519,0.001636,62293.0,62292.0,0.49074456]
[1728833859183,0.001636,62293.0,62292.0,0.32106002]
[1728833859393,0.001636,62293.0,62292.0,0.028818]
[1728833859854,0.001636,62293.0,62292.0,0.0408574]
[1728833860329,0.001636,62293.0,62292.0,0.028818]
[1728833860547,0.001636,62293.0,62292.0,0.04085721]
[1728833860774,0.001636,62293.0,62292.0,0.04085577]
[1728833861901,0.001636,62293.0,62292.0,0.028818]
[1728833868007,0.001636,62293.0,62292.0,0.02888366]
[1728833871385,0.001636,62293.0,62292.0,0.00588366]
[1728833873242,0.001636,62293.0,62292.0,0.21758366]
[1728833875379,0.001636,62293.0,62292.0,0.21958366]
[1728833875600,0.001636,62293.0,62292.0,0.21758366]
[1728833876171,0.001636,62293.0,62292.0,0.22079391]
[1728833876381,0.001636,62293.0,62292.0,0.22279391]
[1728833876640,0.001636,62293.0,62292.0,0.22079391]
[1728833878004,0.001636,62293.0,62292.0,0.22279391]
[1728833878208,0.001636,62293.0,62292.0,0.22079391]
[1728833879822,0.001636,62293.0,62292.0,0.22279391]
[1728833880385,0.001636,62293.0,62292.0,0.24206376]
[1728833880801,0.001636,62293.0,62292.0,0.23806376]
[1728833881032,0.001636,62293.0,62292.0,0.24906376]
[1728833881372,0.001636,62293.0,62292.0,0.24606376]
[1728833881573,0.001636,62293.0,62292.0,0.26006376]
[1728833882104,0.001636,62293.0,62292.0,0.26206376]
[1728833882307,0.001636,62293.0,62292.0,0.26006376]
[1728833882510,0.001636,62293.0,62292.0,0.24906376]
[1728833882776,0.001636,62293.0,62292.0,0.26106376]
[1728833883592,0.001636,62293.0,62292.0,0.26306376]
[1728833885201,0.001636,62293.0,62292.0,0.26106376]
[1728833888354,0.001636,62293.0,62292.0,0.24179391]
[1728833888570,0.001636,62293.0,62292.0,0.28035513]
[1728833889519,0.001636,62293.0,62292.0,0.33050455]
[1728833889755,0.001636,62293.0,62292.0,0.3272943]
[1728833889957,0.001636,62293.0,62292.0,0.27914488]
[1728833890164,0.001636,62293.0,62292.0,0.52911674]
[1728833890375,0.001636,62293.0,62292.0,0.27914488]
[1728833891854,0.001636,62293.0,62292.0,0.25986446]
[1728833892158,0.001636,62293.0,62292.0,0.35136228]
[1728833892797,0.001636,62293.0,62292.0,0.35136057]
[1728833893414,0.001636,62293.0,62292.0,0.52913342]
[1728833893832,0.001636,62293.0,62292.0,0.81985626]
[1728833894067,0.001636,62293.0,62292.0,0.70428544]
[1728833894263,0.001636,62293.0,62292.0,0.8439291]
[1728833894909,0.001636,62293.0,62292.0,0.9332983]
[1728833895155,0.001636,62293.0,62292.0,1.0256362]
[1728833895434,0.001638,62296.0,62295.0,0.59330012]
[1728833895656,0.001638,62296.0,62295.0,1.10716866]
[1728833896315,0.001638,62296.0,62295.0,1.00174454]
[1728833896523,0.001638,62296.0,62295.0,1.10716866]
[1728833896740,0.001638,62296.0,62295.0,1.10696712]
[1728833896956,0.001638,62296.0,62295.0,1.20696712]
[1728833897385,0.001638,62296.0,62295.0,1.22096712]
[1728833898050,0.001638,62296.0,62295.0,1.34903042]
[1728833898266,0.001598,62296.0,62295.0,1.34903042]
[1728833898498,0.001598,62296.0,62295.0,1.33503042]
[1728833898708,0.001598,62296.0,62295.0,1.34903042]
[1728833899606,0.001598,62296.0,62295.0,1.33773744]
[1728833899833,0.001598,62296.0,62295.0,1.19357465]
[1728833900700,0.001598,62296.0,62295.0,1.17957465]
[1728833901347,0.001598,62296.0,62295.0,1.17936685]
[1728833901582,0.001598,62296.0,62295.0,1.16536685]
[1728833902098,0.001598,62296.0,62295.0,1.19336685]
[1728833903598,0.001598,62296.0,62295.0,1.19331011]
[1728833905065,0.001598,62296.0,62295.0,1.14313266]
[1728833905745,0.001598,62296.0,62295.0,1.12913266]
[1728833905952,0.001598,62296.0,62295.0,1.12902186]
[1728833906386,0.001598,62296.0,62295.0,1.14302186]
[1728833906618,0.001598,62296.0,62295.0,1.11502186]
[1728833906860,0.001598,62296.0,62295.0,1.12902186]
[1728833907075,0.001598,62296.0,62295.0,1.19303617]
[1728833907279,0.001598,62296.0,62295.0,1.14302186]
[1728833907503,0.001598,62296.0,62295.0,1.19304225]
[1728833908944,0.001598,62296.0,62295.0,1.19947425]
[1728833909669,0.001598,62296.0,62295.0,1.31947666]
[1728833910158,0.001598,62296.0,62295.0,1.19947425]
[1728833910414,0.001638,62302.0,62300.0,0.38721877]
[1728833910641,0.001638,62302.0,62300.0,0.54844278]
[1728833911582,0.001638,62302.0,62300.0,0.63965824]
[1728833911801,0.001638,62302.0,62300.0,0.54844278]
[1728833912024,0.001638,62302.0,62300.0,0.58165811]
[1728833912244,0.001638,62302.0,62300.0,0.83465824]
[1728833912459,0.001638,62302.0,62300.0,0.84865824]
[1728833912673,0.001638,62302.0,62300.0,1.27387552]
[1728833912890,0.001638,62302.0,62300.0,1.20187539]
[1728833913102,0.001638,62302.0,62300.0,1.29787557]
[1728833913577,0.001638,62302.0,62300.0,1.20187539]
[1728833914661,0.001638,62302.0,62300.0,1.18266006]
[1728833914869,0.001638,62302.0,62300.0,1.2018637]
[1728833916177,0.001638,62302.0,62300.0,1.29784085]
[1728833916387,0.001638,62302.0,62300.0,1.2518972]
[1728833916596,0.001638,62302.0,62300.0,1.34787976]
[1728833916818,0.001638,62302.0,62300.0,1.2518972]
[1728833917026,0.001638,62302.0,62300.0,1.37186864]
[1728833917238,0.001638,62302.0,62300.0,1.26789993]
[1728833917444,0.001638,62302.0,62300.0,1.38950737]
[1728833918286,0.001638,62302.0,62300.0,1.26953593]
[1728833919372,0.001638,62302.0,62300.0,1.02148016]
[1728833919592,0.001638,62302.0,62300.0,0.97144666]
[1728833919805,0.001638,62302.0,62300.0,1.0434557]
[1728833920849,0.001638,62302.0,62300.0,0.86631036]
[1728833921127,0.001638,62302.0,62300.0,1.06753996]
[1728833921542,0.001638,62302.0,62300.0,1.11760825]
[1728833921750,0.001638,62302.0,62300.0,1.09838844]
[1728833921980,0.001638,62302.0,62300.0,0.91738844]
[1728833922408,0.001638,62302.0,62300.0,0.92942006]
[1728833923477,0.001638,62302.0,62300.0,0.83341101]
[1728833923895,0.001638,62302.0,62300.0,0.65618142]
[1728833924121,0.001638,62302.0,62300.0,0.83346001]
[1728833924756,0.001638,62302.0,62300.0,0.75300848]
[1728833924981,0.001638,62302.0,62300.0,0.65694428]
[1728833925202,0.001638,62302.0,62300.0,0.82740658]
[1728833925414,0.001638,62302.0,62300.0,0.67894307]
[1728833925618,0.001638,62302.0,62300.0,0.88958383]
[1728833926375,0.001638,62302.0,62300.0,0.81753462]
[1728833927555,0.001638,62302.0,62300.0,0.91359882]
[1728833927783,0.001638,62302.0,62300.0,0.81753462]
[1728833928483,0.001638,62302.0,62300.0,0.91374569]
[1728833929178,0.001638,62302.0,62300.0,0.91374485]
[1728833930019,0.001638,62302.0,62300.0,0.84966917]
[1728833930441,0.001638,62302.0,62300.0,0.59304999]
[1728833930641,0.001638,62302.0,62300.0,0.6891901]
[1728833930979,0.001638,62302.0,62300.0,0.55881001]
[1728833931181,0.001638,62302.0,62300.0,0.12606241]
[1728833931426,0.001638,62302.0,62300.0,0.07393838]
[1728833931776,0.001638,62302.0,62300.0,0.07593838]
[1728833932012,0.001638,62302.0,62300.0,0.07593749]
[1728833932253,0.001638,62302.0,62300.0,0.09893749]
[1728833932465,0.001638,62302.0,62300.0,0.09693749]
[1728833933081,0.078238,62301.0,62300.0,0.09693749]
[1728833933510,0.261838,62301.0,62300.0,0.09693749]
[1728833933726,0.261838,62301.0,62300.0,0.07393749]
[1728833933953,0.261838,62301.0,62300.0,0.05993749]
[1728833934653,0.261838,62301.0,62300.0,0.07393749]
[1728833934882,0.261838,62301.0,62300.0,0.05993749]
[1728833935115,0.261838,62301.0,62300.0,0.09693749]
[1728833935353,0.261838,62301.0,62300.0,0.084886]
[1728833936310,0.261838,62301.0,62300.0,0.070886]
[1728833936813,0.261838,62301.0,62300.0,0.052636]
[1728833957317,0.261838,62301.0,62300.0,0.06467307]
[1728833957752,0.078238,62301.0,62300.0,0.052636]
[1728833957966,0.078238,62301.0,62300.0,0.06467349]
[1728833957967,0.001638,62301.0,62300.0,0.06467349]
[1728833958184,0.001638,62301.0,62300.0,0.052636]
[1728833958396,0.001638,62301.0,62300.0,0.0646733]
[1728833958818,0.001638,62301.0,62300.0,0.0666733]
[1728833960568,0.001638,62301.0,62300.0,0.0646733]
[1728833961462,0.001638,62301.0,62300.0,0.06468669]
[1728833961679,0.001638,62301.0,62300.0,0.06468606]
[1728833962120,0.36494427,62301.0,62300.0,0.04168606]
[1728833962357,0.359538,62301.0,62300.0,0.029636]
[1728833962581,0.46994427,62301.0,62300.0,0.029636]
[1728833963667,0.46994427,62301.0,62300.0,0.015636]